fUST/lending_fUST_20251108
["ID","MTS","AMOUNT","RATE_DAILY","PERIOD"]
[393395592,1762584634460,-1000.0,0.00021521,2]
[393395593,1762584634470,-661.76717638,0.00021521,2]
[393395594,1762584634480,-1000.0,0.00021521,2]
[393395595,1762584634489,-1000.0,0.00021521,2]
[393395596,1762584634499,-500.0,0.00021567,2]
[393395597,1762584634508,-500.0,0.00021567,2]
[393395598,1762584634518,-500.0,0.00021567,2]
[393395599,1762584634527,-500.0,0.00021567,2]
[393395600,1762584634536,-344.10610053,0.00021567,2]
[393395601,1762584634546,-160.0,0.00021576,2]
[393395602,1762584634555,-500.0,0.00021583,2]
[393395603,1762584634566,-502.18649987,0.00021583,2]
[393395604,1762584634576,-500.0,0.00021583,2]
[393395605,1762584634586,-503.73860959,0.00021583,2]
[393395606,1762584634595,-162.56303898,0.00021583,2]
[393395607,1762584634604,-500.0,0.00021583,2]
[393395608,1762584634614,-500.0,0.00021583,2]
[393395609,1762584634623,-500.0,0.00021583,2]
[393395610,1762584634632,-500.0,0.00021583,2]
[393395611,1762584634642,-500.0,0.00021583,2]
[393395612,1762584634651,-500.0,0.00021583,2]
[393395613,1762584634661,-500.0,0.00021583,2]
[393395614,1762584634671,-500.0,0.00021583,2]
[393395615,1762584634680,-500.0,0.00021583,2]
[393395616,1762584634690,-306.82410471,0.00021583,2]
[393395617,1762584634699,-356.47399863,0.00021583,2]
[393395618,1762584634708,-249.13397588,0.00021583,2]
[393395619,1762584634718,-167.8613438,0.00021583,2]
[393395620,1762584634728,-500.0,0.00021583,2]
[393395621,1762584634738,-486.46322338,0.00021583,2]
[393395622,1762584634749,-500.0,0.00021583,2]
[393395623,1762584634759,-168.0,0.00021658,2]
[393395624,1762584634774,-1680.0,0.00021745,2]
[393395625,1762584634785,-168.0,0.0002176,2]
[393395626,1762584634795,-209.0,0.00021774,2]
[393395627,1762584634805,-168.0,0.00021844,2]
[393395628,1762584634815,-153.0,0.00021918,2]
[393395629,1762584634824,-153.0,0.00021918,2]
[393395630,1762584634834,-153.0,0.00021918,2]
[393395631,1762584634843,-153.0,0.00021918,2]
[393395632,1762584634852,-153.0,0.00021918,2]
[393395633,1762584634862,-153.0,0.00021918,2]
[393395634,1762584634872,-171.077281,0.00021962,2]
[393395635,1762584634881,-500.0,0.00021973,2]
[393395636,1762584634891,-181.68550878,0.00021973,2]
[393395637,1762584634900,-500.0,0.00021973,2]
[393395638,1762584634909,-500.0,0.00021973,2]
[393395639,1762584634919,-500.0,0.00021973,2]
[393395640,1762584634928,-500.0,0.00021973,2]
[393395641,1762584634938,-500.0,0.00021973,2]
[393395642,1762584634947,-504.13678519,0.00021973,2]
[393395643,1762584634956,-500.0,0.00021973,2]
[393395644,1762584634966,-444.49642386,0.00021973,2]
[393395645,1762584634975,-414.53109628,0.00021973,2]
[393395646,1762584634989,-85.46890372,0.00021973,2]
[393395647,1762584634998,-500.0,0.00021973,2]
[393395648,1762584635008,-500.0,0.00021973,2]
[393395649,1762584635017,-325.25618017,0.00021973,2]
[393395659,1762584638232,-151.79,0.000213,2]
[393395660,1762584638242,-151.79,0.000213,2]
[393395661,1762584638254,-151.79,0.000214,2]
[393395662,1762584638265,-151.79,0.000214,2]
[393395663,1762584638275,-151.79,0.000215,2]
[393395664,1762584638285,-38.18125455,0.000215,2]
[393395665,1762584638299,-113.60874545,0.000215,2]
[393395666,1762584638309,-151.79,0.000215,2]
[393395667,1762584638318,-151.79,0.000216,2]
[393395668,1762584638328,-117.76031896,0.000216,2]
[393395669,1762584638340,-34.02968104,0.000216,2]
[393395670,1762584638350,-151.79,0.000217,2]
[393395671,1762584638360,-151.79,0.000217,2]
[393395672,1762584638370,-151.79,0.000218,2]
[393395674,1762584638380,-151.79,0.000218,2]
[393395675,1762584638389,-151.79,0.000218,2]
[393395676,1762584638399,-174.74381983,0.00021973,2]
[393395677,1762584638410,-500.0,0.00021973,2]
[393395678,1762584638419,-113.41447658,0.00021973,2]
[393395679,1762584638431,-294.54076015,0.00021973,2]
[393395680,1762584638452,-92.04476327,0.00021973,2]
[393395681,1762584638462,-510.94775177,0.00021973,2]
[393395682,1762584638472,-500.0,0.00021973,2]
[393395683,1762584638482,-500.0,0.00021973,2]
[393395684,1762584638492,-500.0,0.00021973,2]
[393395685,1762584638502,-500.0,0.00021973,2]
[393395686,1762584638512,-9407.87726542,0.00022,2]
[393395758,1762584640653,-151.77,0.0001989,2]
[393395760,1762584640663,-24429.98999997,0.00022,2]
[393395900,1762584645137,-450.0,0.00019889,2]
[393395901,1762584645147,-600.0,0.00019889,2]
[393395902,1762584645157,-150.0,0.00019889,2]
[393395903,1762584645166,-750.0,0.00019889,2]
[393395904,1762584645176,-300.0,0.00019889,2]
[393395905,1762584645186,-451.146921,0.00019889,2]
[393395906,1762584645196,-26362.50534658,0.00022,2]
[393395907,1762584645206,-187.696162,0.00022,2]
[393395908,1762584645215,-187.696162,0.00022,2]
[393395909,1762584645228,-187.696162,0.00022,2]
[393395910,1762584645239,-187.696162,0.00022,2]
[393395911,1762584645249,-2000.0,0.00022,7]
[393395912,1762584645259,-168.0,0.00022049,2]
[393395913,1762584645269,-853.98996334,0.00022064,2]
[393395914,1762584645279,-2500.0,0.00022064,2]
[393395915,1762584645288,-2500.0,0.00022064,2]
[393395916,1762584645298,-2500.0,0.00022064,2]
[393395917,1762584645308,-1500.0,0.00022068,2]
[393395918,1762584645317,-1500.0,0.00022068,2]
[393395919,1762584645327,-1500.0,0.00022068,2]
[393395920,1762584645337,-1008.80650639,0.00022068,2]
[393395921,1762584645346,-1411.5194586,0.00022068,2]
[393395922,1762584645356,-946.58381269,0.00022068,2]
[393395923,1762584645367,-1500.0,0.00022068,2]
[393395924,1762584645377,-1500.0,0.00022068,2]
[393395925,1762584645386,-1500.0,0.00022068,2]
[393395926,1762584645395,-1500.0,0.00022068,2]
[393395927,1762584645405,-940.63772601,0.00022068,2]
[393395928,1762584645414,-1500.0,0.00022068,2]
[393395929,1762584645424,-1500.0,0.00022068,2]
[393395930,1762584645433,-168.0,0.00022073,2]
[393395931,1762584645442,-1000.0,0.00022115,2]
[393395932,1762584645451,-567.19651555,0.00022115,2]
[393395933,1762584645461,-691.05353271,0.00022115,2]
[393395934,1762584645471,-603.66144871,0.00022115,2]
[393395935,1762584645481,-260.0,0.00022124,2]
[393395936,1762584645491,-1000.0,0.00022131,2]
[393395937,1762584645599,-1000.0,0.00022131,2]
[393395938,1762584645610,-425.70497858,0.00022131,2]
[393395939,1762584645619,-1000.0,0.00022131,2]
[393395940,1762584645629,-1000.0,0.00022131,2]
[393395941,1762584645639,-456.92335874,0.00022131,2]
[393395948,1762584646754,-214.63199772,0.00019055,2]
[393395949,1762584646764,-208.11663028,0.00022131,2]
[393395950,1762584646776,-334.96001098,0.00022131,2]
[393395951,1762584646786,-1000.0,0.00022131,2]
[393395952,1762584646796,-1000.0,0.00022131,2]
[393395953,1762584646806,-1000.0,0.00022131,2]
[393395954,1762584646816,-1000.0,0.00022131,2]
[393395955,1762584646825,-196.03279531,0.00022131,2]
[393395956,1762584646836,-623.89357415,0.00022131,2]
[393395957,1762584646848,-180.07363054,0.00022131,2]
[393395958,1762584646858,-1000.0,0.00022131,2]
[393395959,1762584646867,-1000.0,0.00022131,2]
[393395960,1762584646876,-168.0,0.00022268,2]
[393395961,1762584646886,-1249.98,0.000223,7]
[393395962,1762584646895,-1987.57462049,0.00022313,2]
[393395963,1762584646905,-171.077281,0.00022401,10]
[393395964,1762584646915,-21424.70657653,0.0002241,2]
[393395965,1762584646925,-168.0,0.00022412,2]
[393395966,1762584646934,-179.55095232,0.00022421,2]
[393395967,1762584646944,-506.27268725,0.00022521,2]
[393395968,1762584646953,-1000.0,0.00022521,2]
[393395969,1762584646963,-509.10364879,0.00022521,2]
[393395970,1762584646973,-1000.0,0.00022521,2]
[393395971,1762584646982,-505.40395855,0.00022521,2]
[393395972,1762584646992,-1000.0,0.00022521,2]
[393395973,1762584647001,-1000.0,0.00022521,2]
[393395974,1762584647011,-505.98800299,0.00022521,2]
[393395975,1762584647020,-1000.0,0.00022521,2]
[393395976,1762584647031,-868.99360965,0.00022521,2]
[393395977,1762584647040,-1000.0,0.00022521,2]
[393395978,1762584647050,-1000.0,0.00022521,2]
[393395979,1762584647060,-1000.0,0.00022521,2]
[393395980,1762584647070,-516.02901369,0.00022521,2]
[393395981,1762584647079,-1014.58845881,0.00022521,2]
[393395982,1762584647089,-730.79248641,0.00022521,2]
[393395983,1762584647098,-1000.0,0.00022521,2]
[393395984,1762584647108,-187.696162,0.00022521,2]
[393395985,1762584647117,-187.696162,0.00022521,2]
[393395986,1762584647126,-187.696162,0.00022521,2]
[393395987,1762584647135,-187.696162,0.00022521,2]
[393395988,1762584647145,-2033.53307115,0.0002258,2]
[393395989,1762584647154,-160.0,0.00022606,2]
[393395990,1762584647164,-3000.0,0.00022612,2]
[393395992,1762584647173,-3000.0,0.00022612,2]
[393395993,1762584647183,-211.17544818,0.00022612,2]
[393395995,1762584647193,-187.696162,0.00022616,2]
[393395996,1762584647202,-187.696162,0.00022616,2]
[393395997,1762584647212,-187.696162,0.00022616,2]
[393395998,1762584647223,-187.696152,0.00022616,2]
[393395999,1762584647236,-511.49505023,0.00022616,2]
[393396000,1762584647246,-2000.0,0.00022616,2]
[393396001,1762584647255,-1473.5173103,0.00022616,2]
[393396002,1762584647265,-1869.65918081,0.00022616,2]
[393396003,1762584647277,-525.80585792,0.00022616,2]
[393396004,1762584647286,-960.74309695,0.00022616,2]
[393396005,1762584647295,-2067.30120505,0.00022616,2]
[393396006,1762584647305,-1184.92834815,0.00022616,2]
[393396007,1762584647315,-2000.0,0.00022616,2]
[393396008,1762584647324,-1500.0,0.00022663,2]
[393396009,1762584647334,-171.077281,0.00022669,10]
[393396010,1762584647343,-209.0,0.0002267,2]
[393396011,1762584647353,-360.0,0.00022672,2]
[393396012,1762584647363,-339.9148566,0.00022679,2]
[393396013,1762584647373,-1500.0,0.00022679,2]
[393396014,1762584647382,-1500.0,0.00022679,2]
[393396015,1762584647392,-1500.0,0.00022679,2]
[393396016,1762584647402,-1500.0,0.00022679,2]
[393396017,1762584647411,-1500.0,0.00022679,2]
[393396018,1762584647420,-1500.0,0.00022679,2]
[393396019,1762584647430,-1500.0,0.00022679,2]
[393396020,1762584647439,-1500.0,0.00022679,2]
[393396021,1762584647448,-1500.0,0.00022679,2]
[393396022,1762584647458,-1500.0,0.00022679,2]
[393396023,1762584647467,-1500.0,0.00022679,2]
[393396024,1762584647477,-158.6871054,0.00022728,2]
[393396025,1762584647487,-617.96000574,0.00022742,2]
[393396026,1762584647497,-631.00159916,0.00022744,2]
[393396027,1762584647507,-500.0,0.00022744,2]
[393396028,1762584647516,-171.077281,0.00022762,2]
[393396029,1762584647526,-500.0,0.00022853,2]
[393396030,1762584647536,-500.0,0.00022853,2]
[393396031,1762584647545,-500.0,0.00022853,2]
[393396032,1762584647554,-500.0,0.00022853,2]
[393396033,1762584647564,-500.0,0.00022853,2]
[393396034,1762584647573,-619.52879717,0.00022853,2]
[393396035,1762584647582,-300.0,0.0002288,20]
[393396036,1762584647592,-300.0,0.0002288,20]
[393396037,1762584647601,-171.077281,0.00022936,10]
[393396038,1762584647611,-2000.0,0.00023,7]
[393396039,1762584647620,-1500.0,0.00023068,2]
[393396040,1762584647630,-315.30510659,0.00023068,2]
[393396041,1762584647639,-1500.0,0.00023068,2]
[393396042,1762584647649,-1500.0,0.00023068,2]
[393396043,1762584647659,-1500.0,0.00023068,2]
[393396044,1762584647668,-1500.0,0.00023068,2]
[393396045,1762584647679,-1500.0,0.00023068,2]
[393396046,1762584647688,-1500.0,0.00023068,2]
[393396047,1762584647698,-1305.41578557,0.00023068,2]
[393396048,1762584647708,-162.44935859,0.00023112,2]
[393396049,1762584647718,-168.96067733,0.00023157,2]
[393396050,1762584647728,-221.156831,0.0002316,2]
[393396051,1762584647739,-3500.0,0.0002316,2]
[393396052,1762584647749,-1509.18458915,0.00023164,2]
[393396053,1762584647759,-2500.0,0.00023164,2]
[393396054,1762584647768,-171.077281,0.00023204,10]
[393396055,1762584647778,-452.23997508,0.00023211,2]
[393396056,1762584647787,-460.0,0.0002322,2]
[393396057,1762584647797,-2000.0,0.00023227,2]
[393396058,1762584647807,-1027.37996962,0.00023227,2]
[393396059,1762584647816,-240.63927608,0.00023227,2]
[393396060,1762584647826,-455.04910008,0.00023227,2]
[393396061,1762584647835,-2000.0,0.00023227,2]
[393396062,1762584647845,-670.60808093,0.00023227,2]
[393396063,1762584647854,-1515.18360682,0.00023227,2]
[393396064,1762584647864,-2000.0,0.00023227,2]
[393396065,1762584647873,-2000.0,0.00023227,2]
[393396066,1762584647882,-2000.0,0.00023227,2]
[393396067,1762584647892,-2000.0,0.00023227,2]
[393396068,1762584647901,-638.0471717,0.00023288,30]
[393396069,1762584647911,-151.0,0.00023288,7]
[393396070,1762584647921,-151.0,0.00023288,7]
[393396071,1762584647931,-151.0,0.00023288,7]
[393396072,1762584647940,-256.184385,0.00023288,7]
[393396073,1762584647949,-163.361585,0.00023288,7]
[393396074,1762584647959,-160.513564,0.00023288,7]
[393396075,1762584647968,-151.0,0.00023288,7]
[393396076,1762584647977,-212.133766,0.00023288,7]
[393396077,1762584647988,-151.0,0.00023288,7]
[393396078,1762584647997,-151.0,0.00023288,7]
[393396079,1762584648007,-151.0,0.00023288,7]
[393396080,1762584648016,-151.0,0.00023288,7]
[393396081,1762584648027,-151.0,0.00023288,7]
[393396082,1762584648036,-151.0,0.00023288,7]
[393396083,1762584648046,-151.0,0.00023288,7]
[393396084,1762584648056,-151.0,0.00023288,7]
[393396085,1762584648065,-158.32403,0.00023288,7]
[393396086,1762584648075,-151.0,0.00023288,7]
[393396087,1762584648084,-151.0,0.00023288,7]
[393396088,1762584648093,-214.779573,0.00023288,7]
[393396089,1762584648103,-151.0,0.00023288,7]
[393396090,1762584648113,-151.0,0.00023288,7]
[393396091,1762584648123,-167.750911,0.00023288,7]
[393396092,1762584648132,-151.0,0.00023288,7]
[393396093,1762584648141,-151.0,0.00023288,7]
[393396094,1762584648151,-151.0,0.00023288,7]
[393396095,1762584648160,-151.0,0.00023288,7]
[393396096,1762584648170,-194.504196,0.00023288,7]
[393396097,1762584648179,-151.0,0.00023288,7]
[393396098,1762584648189,-265.525506,0.00023288,7]
[393396099,1762584648199,-151.0,0.00023288,7]
[393396100,1762584648208,-151.0,0.00023288,7]
[393396101,1762584648217,-151.0,0.00023288,7]
[393396102,1762584648231,-151.0,0.00023288,7]
[393396103,1762584648240,-151.0,0.00023288,7]
[393396104,1762584648250,-151.0,0.00023288,7]
[393396105,1762584648261,-153.28617102,0.00023288,7]
[393396106,1762584648272,-151.0,0.00023288,7]
[393396107,1762584648282,-151.0,0.00023288,7]
[393396108,1762584648291,-151.0,0.00023288,7]
[393396109,1762584648301,-151.0,0.00023288,7]
[393396110,1762584648311,-151.0,0.00023288,7]
[393396111,1762584648320,-161.305499,0.00023288,7]
[393396112,1762584648329,-151.0,0.00023288,7]
[393396113,1762584648339,-151.0,0.00023288,7]
[393396114,1762584648348,-151.0,0.00023288,7]
[393396115,1762584648357,-151.0,0.00023288,7]
[393396116,1762584648366,-151.0,0.00023288,7]
[393396117,1762584648375,-151.0,0.00023288,7]
[393396118,1762584648385,-151.0,0.00023288,7]
[393396119,1762584648395,-151.0,0.00023288,7]
[393396120,1762584648404,-294.609371,0.00023288,7]
[393396121,1762584648414,-151.0,0.00023288,7]
[393396122,1762584648424,-151.0,0.00023288,7]
[393396123,1762584648434,-151.0,0.00023288,7]
[393396124,1762584648444,-151.0,0.00023288,7]
[393396125,1762584648454,-151.0,0.00023288,7]
[393396126,1762584648463,-151.0,0.00023288,7]
[393396127,1762584648472,-151.0,0.00023288,7]
[393396128,1762584648483,-151.0,0.00023288,7]
[393396129,1762584648492,-151.0,0.00023288,7]
[393396130,1762584648502,-151.0,0.00023288,7]
[393396131,1762584648511,-151.0,0.00023288,7]
[393396132,1762584648521,-158.727227,0.00023288,7]
[393396133,1762584648530,-151.0,0.00023288,7]
[393396134,1762584648540,-151.0,0.00023288,7]
[393396135,1762584648550,-151.0,0.00023288,7]
[393396136,1762584648559,-157.511207,0.00023288,7]
[393396137,1762584648569,-151.0,0.00023288,7]
[393396138,1762584648579,-151.0,0.00023288,7]
[393396139,1762584648588,-151.0,0.00023288,7]
[393396140,1762584648598,-207.085477,0.00023288,7]
[393396141,1762584648607,-151.0,0.00023288,7]
[393396142,1762584648618,-151.0,0.00023288,7]
[393396143,1762584648628,-151.0,0.00023288,7]
[393396144,1762584648637,-151.0,0.00023288,7]
[393396145,1762584648647,-151.0,0.00023288,7]
[393396146,1762584648656,-151.0,0.00023288,7]
[393396147,1762584648666,-151.0,0.00023288,7]
[393396148,1762584648675,-151.0,0.00023288,7]
[393396149,1762584648685,-151.0,0.00023288,7]
[393396150,1762584648695,-151.0,0.00023288,7]
[393396151,1762584648705,-151.0,0.00023288,7]
[393396152,1762584648714,-156.502845,0.00023288,7]
[393396153,1762584648724,-151.0,0.00023288,7]
[393396154,1762584648734,-151.0,0.00023288,7]
[393396155,1762584648744,-279.608772,0.00023288,7]
[393396156,1762584648754,-151.0,0.00023288,7]
[393396157,1762584648763,-151.0,0.00023288,7]
[393396158,1762584648773,-151.0,0.00023288,7]
[393396159,1762584648783,-151.0,0.00023288,7]
[393396160,1762584648793,-249.880814,0.00023288,7]
[393396161,1762584648803,-151.0,0.00023288,7]
[393396162,1762584648812,-151.0,0.00023288,7]
[393396163,1762584648822,-169.231421,0.00023288,7]
[393396164,1762584648832,-151.385884,0.00023288,2]
[393396165,1762584648841,-151.0,0.00023288,7]
[393396166,1762584648851,-151.899966,0.00023288,7]
[393396167,1762584648860,-158.359274,0.00023288,7]
[393396168,1762584648870,-151.0,0.00023288,7]
[393396169,1762584648880,-151.0,0.00023288,7]
[393396170,1762584648890,-151.0,0.00023288,7]
[393396171,1762584648900,-151.0,0.00023288,7]
[393396172,1762584648910,-151.0,0.00023288,7]
[393396173,1762584648919,-153.023813,0.00023288,7]
[393396174,1762584648930,-151.0,0.00023288,7]
[393396175,1762584648939,-1000.0,0.00023292,2]
[393396176,1762584648948,-250.0,0.000233,2]
[393396177,1762584648959,-190.94,0.000234,7]
[393396178,1762584648968,-1000.0,0.00023401,2]
[393396179,1762584648978,-1000.0,0.00023401,2]
[393396180,1762584648987,-1000.0,0.00023401,2]
[393396181,1762584648997,-1006.14859111,0.00023401,2]
[393396182,1762584649006,-279.86785085,0.00023401,2]
[393396183,1762584649016,-294.44692542,0.00023422,2]
[393396184,1762584649025,-171.077281,0.00023472,10]
[393396185,1762584649035,-193.9734306,0.00023484,2]
[393396186,1762584649044,-171.077281,0.00023563,2]
[393396187,1762584649054,-575.61101644,0.00023574,7]
[393396188,1762584649064,-1010.03567499,0.00023616,2]
[393396189,1762584649158,-2000.0,0.00023616,2]
[393396190,1762584649170,-756.6637611,0.00023616,2]
[393396191,1762584649180,-522.92159442,0.00023616,2]
[393396192,1762584649191,-2000.0,0.00023616,2]
[393396193,1762584649201,-2000.0,0.00023616,2]
[393396194,1762584649210,-808.17285807,0.00023616,2]
[393396195,1762584649221,-797.58132985,0.00023642,2]
[393396196,1762584649233,-4000.0,0.00023708,2]
[393396197,1762584649243,-3000.0,0.00023712,2]
[393396198,1762584649253,-560.0,0.00023768,2]
[393396199,1762584649263,-512.19074474,0.00023775,2]
[393396200,1762584649274,-506.54086938,0.00023775,2]
[393396201,1762584649283,-2500.0,0.00023775,2]
[393396202,1762584649293,-504.34678498,0.00023775,2]
[393396203,1762584649304,-510.7455614,0.00023775,2]
[393396204,1762584649314,-2500.0,0.00023775,2]
[393396205,1762584649324,-1822.0,0.00023795,2]
[393396206,1762584649334,-151.0,0.000238,10]
[393396207,1762584649344,-1500.0,0.0002384,2]
[393396208,1762584649353,-1070.04295731,0.00023861,2]
[393396209,1762584649370,-1500.0,0.00023949,2]
[393396210,1762584649380,-1500.0,0.00023949,2]
[393396211,1762584649389,-1500.0,0.00023949,2]
[393396212,1762584649399,-715.29397809,0.00023964,5]
[393396213,1762584649409,-1911.22385785,0.00024,60]
[393396214,1762584649418,-160.0,0.00024,14]
[393396215,1762584649428,-1723.62737738,0.00024,2]
[393396216,1762584649438,-462.32864595,0.00024,2]
[393396217,1762584649448,-2000.0,0.00024,7]
[393396218,1762584649458,-1249.98,0.000241,7]
[393396219,1762584649467,-16169.90435665,0.00024142,2]
[393396220,1762584649477,-139751.99740223,0.00024142,2]
[393396221,1762584649497,-151.0,0.00023288,7]
[393396222,1762584649507,-29172.82939666,0.00024142,2]
[393396223,1762584649519,-12107.49627969,0.00024142,2]
[393396224,1762584649529,-2500.0,0.00024164,2]
[393396225,1762584649539,-664.69928262,0.00024164,2]
[393396226,1762584649548,-2079.22097008,0.00024164,2]
[393396227,1762584649558,-150.0,0.00024173,2]
[393396228,1762584649569,-1000.0,0.000242,2]
[393396229,1762584649579,-1000.0,0.000242,2]
[393396230,1762584649589,-1000.0,0.000242,2]
[393396231,1762584649599,-1000.0,0.000242,2]
[393396232,1762584649609,-1000.0,0.000242,2]
[393396233,1762584649619,-4088.14895532,0.00024256,2]
[393396234,1762584649629,-3047.28738416,0.0002426,2]
[393396235,1762584649638,-2166.0,0.00024261,2]
[393396236,1762584649647,-628.0,0.00024261,2]
[393396237,1762584649657,-986.0,0.00024261,2]
[393396238,1762584649667,-660.0,0.00024316,2]
[393396239,1762584649676,-3000.0,0.00024322,2]
[393396240,1762584649686,-3000.0,0.00024322,2]
[393396241,1762584649696,-171.077281,0.00024363,2]
[393396242,1762584649706,-2000.0,0.00024388,2]
[393396243,1762584649716,-474.5737993,0.00024497,2]
[393396244,1762584649726,-2000.0,0.00024497,2]
[393396245,1762584649737,-1563.01408117,0.00024497,2]
[393396246,1762584649747,-3868.42976165,0.0002453,7]
[393396247,1762584649758,-649.93695928,0.0002465,2]
[393396248,1762584649771,-1497.25668317,0.0002465,2]
[393396270,1762585076784,906.4778728,0.00032877,120]
[393396300,1762585293832,523.045396,0.00013699,2]
[393396313,1762585574582,218.07767318,0.00036992,120]
[393396370,1762585832755,-160.0,0.00018787,2]
[393396372,1762585832765,-911.0,0.00018787,2]
[393396374,1762585832774,-259.55288993,0.00018788,2]
[393396376,1762585832783,-198.321984,0.00018789,2]
[393396378,1762585832792,-500.0,0.00018973,2]
[393396380,1762585832802,-500.0,0.00018973,2]
[393396381,1762585832811,-506.41220226,0.00018973,2]
[393396383,1762585832820,-300.0,0.00018984,2]
[393396385,1762585832829,-950.0,0.00018984,2]
[393396387,1762585832838,-500.0,0.00018984,2]
[393396389,1762585832847,-500.0,0.00018984,2]
[393396391,1762585832857,-453.55561959,0.00018984,2]
[393396393,1762585832866,-502.08449559,0.00018984,2]
[393396396,1762585832880,-500.0,0.00018984,2]
[393396397,1762585832890,-500.0,0.00018984,2]
[393396399,1762585832899,-500.0,0.00018984,2]
[393396401,1762585832908,-500.0,0.00018984,2]
[393396403,1762585832917,-626.83407205,0.00018984,2]
[393396405,1762585832926,-500.0,0.00018984,2]
[393396407,1762585832935,-500.0,0.00018984,2]
[393396409,1762585832944,-500.0,0.00018984,2]
[393396411,1762585832953,-500.0,0.00018984,2]
[393396413,1762585832967,-500.0,0.00018984,2]
[393396415,1762585832976,-531.80032616,0.00018984,2]
[393396418,1762585832987,-500.0,0.00018984,2]
[393396419,1762585832997,-500.0,0.00018984,2]
[393396421,1762585833006,-500.0,0.00018984,2]
[393396423,1762585833015,-500.0,0.00018984,2]
[393396424,1762585833025,-500.0,0.00018984,2]
[393396426,1762585833035,-500.0,0.00018984,2]
[393396428,1762585833044,-500.0,0.00018984,2]
[393396429,1762585833053,-500.0,0.00018984,2]
[393396431,1762585833063,-500.0,0.00018984,2]
[393396433,1762585833073,-500.0,0.00018984,2]
[393396435,1762585833083,-500.0,0.00018984,2]
[393396437,1762585833092,-397.33382926,0.00018984,2]
[393396439,1762585833101,-500.0,0.00018984,2]
[393396441,1762585833110,-500.0,0.00018984,2]
[393396443,1762585833120,-500.0,0.00018984,2]
[393396444,1762585833130,-500.0,0.00018984,2]
[393396446,1762585833140,-500.0,0.00018984,2]
[393396447,1762585833149,-500.0,0.00018984,2]
[393396449,1762585833159,-500.0,0.00018984,2]
[393396451,1762585833168,-500.0,0.00018984,2]
[393396452,1762585833177,-500.0,0.00018984,2]
[393396453,1762585833187,-500.0,0.00018984,2]
[393396454,1762585833196,-500.0,0.00018984,2]
[393396455,1762585833206,-500.0,0.00018984,2]
[393396456,1762585833216,-500.0,0.00018984,2]
[393396457,1762585833226,-500.0,0.00018984,2]
[393396458,1762585833236,-1200.0,0.00018985,2]
[393396459,1762585833254,-166.64339161,0.00018985,2]
[393396460,1762585833264,-34973.69760153,0.00018985,2]
[393396461,1762585833273,-500.0,0.00018986,2]
[393396462,1762585833283,-507.83987488,0.00018987,2]
[393396463,1762585833293,-500.0,0.00018987,2]
[393396464,1762585833302,-500.0,0.00018987,2]
[393396465,1762585833312,-204.721,0.00018987,2]
[393396466,1762585833322,-500.0,0.00018989,2]
[393396467,1762585833331,-500.0,0.00018989,2]
[393396468,1762585833342,-500.0,0.00018989,2]
[393396469,1762585833351,-500.0,0.00018989,2]
[393396470,1762585833361,-548.98321105,0.00018989,2]
[393396471,1762585833370,-100000.0,0.0001899,2]
[393396472,1762585833379,-150.71,0.00019,2]
[393396473,1762585833389,-150.71,0.00019,2]
[393396474,1762585833399,-150.71,0.00019,2]
[393396475,1762585833408,-150.71,0.00019,2]
[393396476,1762585833418,-150.71,0.00019,2]